lending/lending_fUSD_20250121
["ID","MTS","AMOUNT","RATE_DAILY","PERIOD"]
[349887341,1737478248681,-500.0,0.00019452,2]
[349887342,1737478248694,-1349.85,0.00019452,2]
[349887343,1737478248711,-500.0,0.00019452,2]
[349887344,1737478248723,-500.0,0.00019452,2]
[349887345,1737478248737,-420.66781806,0.00019452,2]
[349887346,1737478248750,-500.0,0.00019452,2]
[349887347,1737478248764,-645.55,0.00019452,2]
[349887348,1737478248777,-1035.17,0.00019452,2]
[349887349,1737478248791,-631.13,0.00019452,2]
[349887350,1737478248804,-500.0,0.00019452,2]
[349887351,1737478248817,-500.0,0.00019452,2]
[349887352,1737478248830,-1988.8,0.00019452,2]
[349887353,1737478248843,-500.0,0.00019452,2]
[349887354,1737478248857,-500.0,0.00019452,2]
[349887355,1737478248869,-500.0,0.00019452,2]
[349887356,1737478248882,-500.0,0.00019452,2]
[349887357,1737478248895,-500.0,0.00019452,2]
[349887358,1737478248909,-500.0,0.00019452,2]
[349887359,1737478248922,-2711.71,0.00019452,2]
[349887360,1737478248935,-1774.94,0.00019452,2]
[349887361,1737478248948,-500.0,0.00019452,2]
[349887362,1737478248963,-4774.61,0.00019452,2]
[349887363,1737478248977,-500.0,0.00019452,2]
[349887364,1737478248990,-500.0,0.00019452,2]
[349887365,1737478249004,-1001.19,0.00019452,2]
[349887366,1737478249017,-1631.75,0.00019452,2]
[349887367,1737478249031,-576.86247526,0.00019452,2]
[349887368,1737478249045,-500.0,0.00019452,2]
[349887369,1737478249059,-5000.0,0.00019452,2]
[349887370,1737478249074,-1124.73,0.00019452,2]
[349887371,1737478249087,-500.0,0.00019452,2]
[349887372,1737478249102,-500.0,0.00019452,2]
[349887373,1737478249116,-607.55,0.00019452,2]
[349887374,1737478249130,-500.0,0.00019452,2]
[349887375,1737478249146,-1174.79,0.00019452,2]
[349887376,1737478249160,-500.0,0.00019452,2]
[349887377,1737478249174,-500.0,0.00019452,2]
[349887378,1737478249188,-699.8,0.00019452,2]
[349887379,1737478249203,-500.0,0.00019452,2]
[349887380,1737478249224,-1487.82,0.00019452,2]
[349887381,1737478249237,-500.0,0.00019452,2]
[349887382,1737478249252,-500.0,0.00019452,2]
[349887383,1737478249268,-500.0,0.00019452,2]
[349887384,1737478249289,-500.0,0.00019452,2]
[349887385,1737478249310,-763.38,0.00019452,2]
[349887386,1737478249325,-500.0,0.00019452,2]
[349887387,1737478249340,-500.0,0.00019452,2]
[349887388,1737478249355,-1036.12,0.00019452,2]
[349887389,1737478249370,-500.0,0.00019452,2]
[349887390,1737478249385,-1031.68,0.00019452,2]
[349887391,1737478249398,-673.57,0.00019452,2]
[349887392,1737478249413,-500.0,0.00019452,2]
[349887393,1737478249428,-277.82771957,0.00019452,2]
[349887394,1737478250007,-222.17228043,0.00019452,2]
[349887395,1737478250018,-787.43,0.00019452,2]
[349887396,1737478250028,-1642.48,0.00019452,2]
[349887397,1737478250038,-500.0,0.00019452,2]
[349887398,1737478250047,-500.0,0.00019452,2]
[349887399,1737478250057,-9.48668684,0.00019452,2]
[349887400,1737478250070,-490.51331316,0.00019452,2]
[349887401,1737478250079,-500.0,0.00019452,2]
[349887402,1737478250089,-500.0,0.00019452,2]
[349887403,1737478250103,-500.0,0.00019452,2]
[349887404,1737478250113,-500.0,0.00019452,2]
[349887405,1737478250122,-507.0,0.00019452,2]
[349887406,1737478250131,-2362.94,0.00019452,2]
[349887407,1737478250140,-500.0,0.00019452,2]
[349887408,1737478250149,-610.38,0.00019452,2]
[349887409,1737478250160,-500.0,0.00019452,2]
[349887410,1737478250169,-500.0,0.00019452,2]
[349887411,1737478250180,-538.75,0.00019452,2]
[349887412,1737478250190,-500.0,0.00019452,2]
[349887413,1737478250200,-500.0,0.00019452,2]
[349887414,1737478250211,-500.0,0.00019452,2]
[349887415,1737478250222,-500.0,0.00019452,2]
[349887416,1737478250231,-578.42,0.00019452,2]
[349887417,1737478250241,-727.09,0.00019452,2]
[349887418,1737478250251,-4085.98,0.00019452,2]
[349887419,1737478250261,-1218.47,0.00019452,2]
[349887420,1737478250273,-500.0,0.00019452,2]
[349887421,1737478250283,-500.0,0.00019452,2]
[349887422,1737478250292,-1939.43,0.00019452,2]
[349887423,1737478250301,-500.0,0.00019452,2]
[349887424,1737478250312,-1449.69,0.00019452,2]
[349887425,1737478250321,-500.0,0.00019452,2]
[349887426,1737478250331,-1464.17,0.00019452,2]
[349887427,1737478250341,-500.0,0.00019452,2]
[349887428,1737478250350,-1243.61,0.00019452,2]
[349887429,1737478250361,-500.0,0.00019452,2]
[349887430,1737478250371,-500.0,0.00019452,2]
[349887431,1737478250383,-1000.44,0.00019452,2]
[349887432,1737478250393,-500.0,0.00019452,2]
[349887433,1737478250402,-500.0,0.00019452,2]
[349887434,1737478250411,-1407.97,0.00019452,2]
[349887435,1737478250422,-500.0,0.00019452,2]
[349887436,1737478250431,-500.0,0.00019452,2]
[349887437,1737478250440,-501.03422384,0.00019452,2]
[349887438,1737478250450,-1937.63,0.00019452,2]
[349887439,1737478250463,-902.42,0.00019452,2]
[349887440,1737478250472,-500.0,0.00019452,2]
[349887441,1737478250482,-500.0,0.00019452,2]
[349887442,1737478250496,-729.77,0.00019452,2]
[349887443,1737478250505,-500.0,0.00019452,2]
[349887444,1737478250515,-500.0,0.00019452,2]
[349887445,1737478250526,-547.66,0.00019452,2]
[349887446,1737478250537,-500.0,0.00019452,2]
[349887447,1737478250547,-569.64532482,0.00019452,2]
[349887448,1737478250557,-260.58384241,0.00019452,2]
[349887449,1737478250569,-239.41615759,0.00019452,2]
[349887450,1737478250579,-500.0,0.00019452,2]
[349887451,1737478250588,-500.0,0.00019452,2]
[349887452,1737478250597,-500.0,0.00019452,2]
[349887453,1737478250607,-492.19180061,0.00019452,2]
[349887454,1737478250616,-500.0,0.00019452,2]
[349887455,1737478250625,-500.0,0.00019452,2]
[349887456,1737478250634,-500.0,0.00019452,2]
[349887457,1737478250644,-500.0,0.00019452,2]
[349887458,1737478250653,-500.0,0.00019452,2]
[349887459,1737478250662,-500.0,0.00019452,2]
[349887460,1737478250673,-887.62,0.00019452,2]
[349887461,1737478250683,-500.0,0.00019452,2]
[349887462,1737478250692,-812.52530246,0.00019452,2]
[349887463,1737478250704,-54.17469754,0.00019452,2]
[349887464,1737478250715,-500.0,0.00019452,2]
[349887465,1737478250724,-1854.61,0.00019452,2]
[349887466,1737478250734,-500.0,0.00019452,2]
[349887467,1737478250744,-812.98,0.00019452,2]
[349887468,1737478250754,-500.0,0.00019452,2]
[349887469,1737478250764,-4169.15,0.00019452,2]
[349887470,1737478250774,-500.0,0.00019452,2]
[349887471,1737478250784,-500.0,0.00019452,2]
[349887472,1737478250794,-1377.76,0.00019452,2]
[349887473,1737478250804,-531.49103085,0.00019452,2]
[349887474,1737478250813,-500.0,0.00019452,2]
[349887475,1737478250823,-500.0,0.00019452,2]
[349887476,1737478250833,-500.0,0.00019452,2]
[349887477,1737478250843,-500.0,0.00019452,2]
[349887478,1737478250853,-500.0,0.00019452,2]
[349887479,1737478250864,-500.0,0.00019452,2]
[349887480,1737478250874,-190.64886265,0.00019452,2]
[349887481,1737478250884,-500.0,0.00019452,2]
[349887482,1737478250894,-500.0,0.00019452,2]
[349887483,1737478250903,-500.0,0.00019452,2]
[349887484,1737478250913,-500.0,0.00019452,2]
[349887485,1737478250923,-500.0,0.00019452,2]
[349887486,1737478250932,-500.0,0.00019452,2]
[349887487,1737478250942,-500.0,0.00019452,2]
[349887488,1737478250952,-500.0,0.00019452,2]
[349887489,1737478250964,-1855.91,0.00019452,2]
[349887490,1737478250974,-500.0,0.00019452,2]
[349887491,1737478250984,-408.02363604,0.00019452,2]
[349887492,1737478250994,-500.0,0.00019452,2]
[349887493,1737478251003,-150.0,0.00019467,2]
[349887494,1737478251013,-500.0,0.00019473,2]
[349887495,1737478251022,-500.0,0.00019473,2]
[349887496,1737478251031,-201.00830226,0.00019473,2]
[349887497,1737478251041,-161.02231597,0.00019473,2]
[349887498,1737478251050,-151.02083461,0.00019473,2]
[349887499,1737478251060,-276.72058124,0.00019473,2]
[349887500,1737478251069,-150.0,0.00019479,2]
[349887501,1737478251078,-4867.31602582,0.00019516,2]
[349887502,1737478251087,-150.0,0.00019578,2]
[349887503,1737478251096,-6298.61409303,0.00019594,2]
[349887504,1737478251106,-1285.29235592,0.00019626,2]
[349887505,1737478251115,-2512.0142,0.00019626,2]
[349887506,1737478251126,-150.0,0.00019687,2]
[349887507,1737478251137,-500.0,0.00019724,2]
[349887508,1737478251146,-150.0,0.00019724,2]
[349887509,1737478251156,-500.0,0.00019725,2]
[349887510,1737478251166,-500.0,0.00019725,2]
[349887511,1737478251176,-500.0,0.00019725,2]
[349887512,1737478251185,-500.0,0.00019725,2]
[349887513,1737478251195,-500.0,0.00019725,2]
[349887514,1737478251207,-500.0,0.00019725,2]
[349887515,1737478251223,-4446.72,0.00019725,2]
[349887516,1737478251233,-686.09,0.00019725,2]
[349887517,1737478251242,-619.35,0.00019725,2]
[349887518,1737478251252,-500.0,0.00019725,2]
[349887519,1737478251262,-736.13,0.00019725,2]
[349887520,1737478251272,-500.0,0.00019725,2]
[349887521,1737478251282,-576.84,0.00019725,2]
[349887522,1737478251291,-748.56,0.00019725,2]
[349887523,1737478251301,-935.13,0.00019725,2]
[349887524,1737478251310,-916.83,0.00019725,2]
[349887525,1737478251320,-705.22,0.00019725,2]
[349887526,1737478251329,-1338.11,0.00019725,2]
[349887527,1737478251341,-3146.11,0.00019725,2]
[349887528,1737478251351,-500.0,0.00019725,2]
[349887529,1737478251361,-202.50955262,0.00019725,2]
[349887530,1737478251377,-552.65044738,0.00019725,2]
[349887531,1737478251387,-544.01,0.00019725,2]
[349887532,1737478251397,-1561.89,0.00019725,2]
[349887533,1737478251407,-500.0,0.00019725,2]
[349887534,1737478251416,-627.29,0.00019725,2]
[349887535,1737478251426,-1038.48,0.00019725,2]
[349887536,1737478251436,-1045.81,0.00019725,2]
[349887537,1737478251445,-500.0,0.00019725,2]
[349887538,1737478251454,-235.95116695,0.00019725,2]
[349887539,1737478251758,-153.29,0.00018634,2]
[349887540,1737478251768,-153.29,0.00018643,2]
[349887541,1737478251778,-153.29,0.00018652,2]
[349887542,1737478251787,-153.29,0.00018662,2]
[349887543,1737478251796,-153.29,0.00018671,2]
[349887544,1737478251805,-153.29,0.0001868,2]
[349887545,1737478251815,-659.3969838,0.00019725,2]
[349887546,1737478251827,-104.65184925,0.00019725,2]
[349887547,1737478251836,-1022.32,0.00019725,2]
[349887548,1737478251845,-500.0,0.00019725,2]
[349887549,1737478251855,-609.68,0.00019726,2]
[349887550,1737478251864,-500.0,0.00019726,2]
[349887551,1737478251873,-500.0,0.00019726,2]
[349887552,1737478251883,-500.0,0.00019726,2]
[349887553,1737478251891,-470.58943075,0.00019726,2]
[349887554,1737478252371,-153.29,0.0001869,2]
[349887555,1737478252382,-500.0,0.00019178,2]
[349887556,1737478252391,-29.41056925,0.00019726,2]
[349887557,1737478252400,-386.09551335,0.00019726,2]
[349887558,1737478252411,-113.90448665,0.00019726,2]
[349887559,1737478252420,-500.0,0.00019726,2]
[349887560,1737478252429,-433.48575695,0.00019726,2]
[349887561,1737478252440,-66.51424305,0.00019726,2]
[349887562,1737478252449,-520.1892351,0.00019726,2]
[349887563,1737478252458,-500.0,0.00019726,2]
[349887564,1737478252470,-500.0,0.00019726,2]
[349887565,1737478252480,-500.0,0.00019726,2]
[349887566,1737478252493,-500.0,0.00019726,2]
[349887567,1737478252503,-500.0,0.00019726,2]
[349887568,1737478252512,-197.29652185,0.00019726,2]
[349887569,1737478252528,-302.70347815,0.00019726,2]
[349887570,1737478252538,-374.5336695,0.00019726,2]
[349887571,1737478252559,-500.0,0.00019452,2]
[349887572,1737478252568,-125.4663305,0.00019726,2]
[349887573,1737478252579,-500.0,0.00019726,2]
[349887574,1737478252588,-500.0,0.00019726,2]
[349887575,1737478252598,-141.73657894,0.00019726,2]
[349887576,1737478252818,-153.29,0.00018699,2]
[349887577,1737478252827,-152.88750474,0.00018708,2]
[349887578,1737478252848,-0.40249526,0.00018708,2]
[349887579,1737478252858,-153.29,0.00018718,2]
[349887580,1737478252868,-153.29,0.00018727,2]
[349887581,1737478252878,-500.0,0.00019178,2]
[349887582,1737478252887,-349.2907806,0.00019726,2]
[349887583,1737478252897,-500.0,0.00019726,2]
[349887584,1737478252907,-580.38,0.00019726,2]
[349887585,1737478252916,-500.0,0.00019726,2]
[349887586,1737478252925,-500.0,0.00019726,2]
[349887587,1737478252935,-500.0,0.00019726,2]
[349887588,1737478252944,-500.0,0.00019726,2]
[349887589,1737478252954,-500.0,0.00019726,2]
[349887590,1737478252965,-500.0,0.00019726,2]
[349887591,1737478252975,-500.0,0.00019726,2]
[349887592,1737478252985,-500.0,0.00019726,2]
[349887593,1737478252995,-500.0,0.00019726,2]
[349887594,1737478253005,-500.0,0.00019726,2]
[349887595,1737478253015,-162.24672414,0.00019726,2]
[349887596,1737478253027,-337.75327586,0.00019726,2]
[349887597,1737478253037,-390.53941209,0.00019726,2]
[349887598,1737478253047,-214.81424084,0.00019726,2]
[349887599,1737478253058,-385.98575916,0.00019726,2]
[349887600,1737478253068,-128.98434133,0.00019726,2]
[349887601,1737478253648,-150.0,0.00018557,2]
[349887602,1737478253657,-150.0,0.0001879,2]
[349887603,1737478253668,-150.0,0.00018923,2]
[349887604,1737478253677,-500.0,0.00019451,2]
[349887605,1737478253688,-500.0,0.00019451,2]
[349887606,1737478253697,-156.01295642,0.00019451,2]
[349887607,1737478253707,-371.01565867,0.00019726,2]
[349887608,1737478253718,-500.0,0.00019726,2]
[349887609,1737478253727,-103.86440625,0.00019726,2]
[349887610,1737478253745,-150.0,0.00018974,2]
[349887611,1737478253755,-396.13559375,0.00019726,2]
[349887612,1737478253764,-500.0,0.00019726,2]
[349887613,1737478253773,-576.04712896,0.00019726,2]
[349887614,1737478253783,-500.0,0.00019726,2]
[349887615,1737478253792,-500.0,0.00019726,2]
[349887616,1737478253801,-500.0,0.00019726,2]
[349887617,1737478253811,-500.0,0.00019726,2]
[349887618,1737478253820,-500.0,0.00019726,2]
[349887619,1737478253830,-513.19107444,0.00019726,2]
[349887620,1737478253839,-500.0,0.00019726,2]
[349887621,1737478253848,-628.07,0.00019726,2]
[349887622,1737478253857,-541.15,0.00019726,2]
[349887623,1737478253867,-500.0,0.00019726,2]
[349887624,1737478253876,-500.0,0.00019726,2]
[349887625,1737478253885,-500.0,0.00019726,2]
[349887626,1737478253894,-500.0,0.00019726,2]
[349887627,1737478253904,-500.0,0.00019726,2]
[349887628,1737478253913,-713.97,0.00019726,2]
[349887629,1737478253923,-578.13,0.00019726,2]
[349887630,1737478253932,-500.0,0.00019726,2]
[349887631,1737478253942,-500.0,0.00019726,2]
[349887632,1737478253951,-538.16,0.00019726,2]
[349887633,1737478253961,-576.69,0.00019726,2]
[349887634,1737478253971,-500.0,0.00019726,2]
[349887635,1737478253981,-500.0,0.00019726,2]
[349887636,1737478253990,-500.0,0.00019726,2]
[349887637,1737478253999,-500.0,0.00019726,2]
[349887638,1737478254009,-500.0,0.00019726,2]
[349887639,1737478254019,-500.0,0.00019726,2]
[349887640,1737478254028,-500.0,0.00019726,2]
[349887641,1737478254037,-500.0,0.00019726,2]
[349887642,1737478254047,-500.0,0.00019726,2]
[349887643,1737478254056,-500.0,0.00019726,2]
[349887644,1737478254065,-500.0,0.00019726,2]
[349887645,1737478254075,-500.0,0.00019726,2]
[349887646,1737478254084,-500.0,0.00019726,2]
[349887647,1737478254094,-500.0,0.00019726,2]
[349887648,1737478254103,-500.0,0.00019726,2]
[349887649,1737478254113,-500.0,0.00019726,2]
[349887650,1737478254122,-500.0,0.00019726,2]
[349887651,1737478254131,-500.0,0.00019726,2]
[349887652,1737478254141,-500.0,0.00019726,2]
[349887653,1737478254150,-500.0,0.00019726,2]
[349887654,1737478254159,-500.0,0.00019726,2]
[349887655,1737478254169,-500.0,0.00019726,2]
[349887656,1737478254179,-500.0,0.00019726,2]
[349887657,1737478254188,-500.0,0.00019726,2]
[349887658,1737478254198,-500.0,0.00019726,2]
[349887659,1737478254207,-500.0,0.00019726,2]
[349887660,1737478254219,-500.0,0.00019726,2]
[349887661,1737478254228,-500.0,0.00019726,2]
[349887662,1737478254237,-500.0,0.00019726,2]
[349887663,1737478254247,-500.0,0.00019726,2]
[349887664,1737478254257,-531.04490341,0.00019726,2]
[349887665,1737478254266,-637.24090478,0.00019726,2]
[349887666,1737478254276,-500.0,0.00019726,2]
[349887667,1737478254286,-509.41,0.00019726,2]
[349887668,1737478254295,-500.0,0.00019726,2]
[349887669,1737478254305,-500.0,0.00019726,2]
[349887670,1737478254314,-500.0,0.00019726,2]
[349887671,1737478254324,-617.72053745,0.00019726,2]
[349887672,1737478254334,-500.0,0.00019726,2]
[349887673,1737478254343,-500.0,0.00019726,2]
[349887674,1737478254352,-500.0,0.00019726,2]
[349887675,1737478254361,-500.0,0.00019726,2]
[349887676,1737478254373,-500.0,0.00019726,2]
[349887677,1737478254383,-500.0,0.00019726,2]
[349887678,1737478254392,-500.0,0.00019726,2]
[349887679,1737478254401,-500.0,0.00019726,2]
[349887680,1737478254411,-500.0,0.00019726,2]
[349887681,1737478254420,-580.323488,0.00019726,2]
[349887682,1737478254429,-500.0,0.00019726,2]
[349887683,1737478254439,-500.0,0.00019726,2]
[349887684,1737478254448,-500.0,0.00019726,2]
[349887685,1737478254457,-500.0,0.00019726,2]
[349887686,1737478254472,-500.0,0.00019726,2]
[349887687,1737478254482,-500.0,0.00019726,2]
[349887688,1737478254495,-500.0,0.00019726,2]
[349887689,1737478254505,-500.0,0.00019726,2]
[349887690,1737478254515,-500.0,0.00019726,7]
[349887691,1737478254524,-500.0,0.00019726,2]
[349887692,1737478254535,-500.0,0.00019726,2]
[349887693,1737478254544,-500.0,0.00019726,2]
[349887694,1737478254553,-500.0,0.00019726,2]
[349887695,1737478254562,-500.0,0.00019726,2]
[349887696,1737478254573,-500.0,0.00019726,2]
[349887697,1737478254584,-686.831651,0.00019726,2]
[349887698,1737478254594,-500.0,0.00019726,2]
[349887699,1737478254603,-331.33888958,0.00019726,2]
[349887700,1737478254612,-500.0,0.00019726,2]
[349887701,1737478254622,-500.0,0.00019726,2]
[349887702,1737478254631,-500.0,0.00019726,2]
[349887703,1737478254640,-500.0,0.00019726,2]
[349887704,1737478254649,-500.0,0.00019726,2]
[349887705,1737478254659,-500.0,0.00019726,2]
[349887706,1737478254668,-500.0,0.00019726,2]
[349887707,1737478254677,-500.0,0.00019726,2]
[349887708,1737478254686,-500.0,0.00019726,2]
[349887709,1737478254696,-500.0,0.00019726,2]
[349887710,1737478254705,-500.0,0.00019726,2]
[349887711,1737478254717,-565.47,0.00019726,2]
[349887712,1737478254728,-500.0,0.00019726,2]
[349887713,1737478254737,-500.0,0.00019726,2]
[349887714,1737478254747,-500.0,0.00019726,2]
[349887715,1737478254756,-500.0,0.00019726,2]
[349887716,1737478254765,-500.0,0.00019726,2]
[349887717,1737478254774,-500.0,0.00019726,2]
[349887718,1737478254784,-500.0,0.00019726,2]
[349887719,1737478254794,-500.0,0.00019726,2]
[349887720,1737478254803,-500.0,0.00019726,2]
[349887721,1737478254813,-500.0,0.00019726,2]
[349887722,1737478254822,-500.0,0.00019726,2]
[349887723,1737478254831,-500.0,0.00019726,2]
[349887724,1737478254840,-500.0,0.00019726,2]
[349887725,1737478254849,-500.0,0.00019726,2]
[349887726,1737478254858,-500.0,0.00019726,2]
[349887727,1737478254868,-500.0,0.00019726,2]
[349887728,1737478254878,-500.0,0.00019726,2]
[349887729,1737478254888,-500.0,0.00019726,2]
[349887730,1737478254897,-452.56487938,0.00019726,2]
[349887731,1737478254907,-500.0,0.00019726,2]
[349887732,1737478254917,-500.0,0.00019726,2]
[349887733,1737478254926,-515.03,0.00019726,2]
[349887734,1737478254939,-500.0,0.00019726,2]
[349887735,1737478254951,-650.55,0.00019726,2]
[349887736,1737478254966,-500.0,0.00019726,2]
[349887737,1737478254982,-534.46,0.00019726,2]
[349887738,1737478254995,-500.0,0.00019726,2]
[349887739,1737478255007,-265.88374902,0.00019726,2]
[349887740,1737478255018,-500.0,0.00019726,2]
[349887741,1737478255027,-500.0,0.00019726,2]
[349887742,1737478255038,-500.0,0.00019726,2]
[349887743,1737478255048,-429.95265698,0.00019726,2]
[349887744,1737478255057,-500.0,0.00019726,2]
[349887745,1737478255066,-500.0,0.00019726,2]
[349887746,1737478255076,-500.0,0.00019726,2]
[349887747,1737478255085,-500.0,0.00019726,2]
[349887748,1737478255094,-500.0,0.00019726,2]
[349887749,1737478255105,-500.0,0.00019726,2]
[349887750,1737478255114,-500.0,0.00019726,2]
[349887751,1737478255124,-500.0,0.00019726,2]
[349887752,1737478255133,-500.0,0.00019726,2]
[349887753,1737478255142,-500.0,0.00019726,2]
[349887754,1737478255151,-500.0,0.00019726,2]
[349887755,1737478255161,-500.0,0.00019726,2]
[349887756,1737478255171,-500.0,0.00019726,2]
[349887757,1737478255180,-500.0,0.00019726,2]
[349887758,1737478255189,-193.79983161,0.00019726,2]
[349887759,1737478255198,-500.0,0.00019726,2]
[349887760,1737478255207,-500.0,0.00019726,2]
[349887761,1737478255219,-500.0,0.00019726,2]
[349887762,1737478255229,-500.0,0.00019726,2]
[349887763,1737478255238,-500.0,0.00019726,2]
[349887764,1737478255247,-500.0,0.00019726,2]
[349887765,1737478255257,-500.0,0.00019726,2]
[349887766,1737478255266,-500.0,0.00019726,2]
[349887767,1737478255276,-500.0,0.00019726,2]
[349887768,1737478255285,-500.0,0.00019726,2]
[349887769,1737478255294,-500.0,0.00019726,2]
[349887770,1737478255303,-500.0,0.00019726,2]
[349887771,1737478255312,-500.0,0.00019726,2]
[349887772,1737478255321,-500.0,0.00019726,2]
[349887773,1737478255331,-500.0,0.00019726,2]
[349887774,1737478255340,-500.0,0.00019726,2]
[349887775,1737478255348,-500.0,0.00019726,2]
[349887776,1737478255358,-502.93,0.00019726,2]
[349887777,1737478255367,-500.0,0.00019726,2]
[349887778,1737478255376,-500.0,0.00019726,2]
[349887779,1737478255386,-500.0,0.00019726,2]
[349887780,1737478255395,-500.0,0.00019726,2]
[349887781,1737478255405,-544.69,0.00019726,2]
[349887782,1737478255415,-500.0,0.00019726,2]
[349887783,1737478255424,-284.33399713,0.00019726,2]
[349887784,1737478255434,-500.0,0.00019726,2]
[349887785,1737478255443,-500.0,0.00019726,2]
[349887786,1737478255453,-500.0,0.00019726,2]
[349887787,1737478255464,-500.0,0.00019726,2]
[349887788,1737478255473,-500.0,0.00019726,2]
[349887789,1737478255482,-500.0,0.00019726,2]
[349887790,1737478255492,-500.0,0.00019726,2]
[349887791,1737478255503,-500.0,0.00019726,2]
[349887792,1737478255512,-500.0,0.00019726,2]
[349887793,1737478255521,-500.0,0.00019726,2]
[349887794,1737478255531,-500.0,0.00019726,2]
[349887795,1737478255540,-500.0,0.00019726,2]
[349887796,1737478255550,-500.0,0.00019726,2]
[349887797,1737478255560,-500.0,0.00019726,2]
[349887798,1737478255569,-500.0,0.00019726,2]
[349887799,1737478255580,-500.0,0.00019726,2]
[349887800,1737478255590,-259.1936789,0.00019726,2]
[349887801,1737478255599,-969.01,0.00019726,2]
[349887802,1737478255608,-500.0,0.00019726,2]
[349887803,1737478255617,-500.0,0.00019726,2]
[349887804,1737478255627,-500.0,0.00019726,2]
[349887805,1737478255636,-500.0,0.00019726,2]
[349887806,1737478255646,-2226.55,0.00019726,2]
[349887807,1737478255655,-280.19492437,0.00019726,2]
[349887808,1737478255665,-500.0,0.00019726,2]
[349887809,1737478255674,-500.0,0.00019726,2]
[349887810,1737478255683,-1144.85,0.00019726,2]
[349887811,1737478255692,-197.74470323,0.00019726,2]
[349887812,1737478255702,-500.0,0.00019726,2]
[349887813,1737478255711,-1191.61,0.00019726,2]
[349887814,1737478255723,-500.0,0.00019726,2]
[349887815,1737478255732,-217.10593801,0.00019726,2]
[349887816,1737478255755,-282.89406199,0.00019726,2]
[349887817,1737478255765,-352.20093901,0.00019726,2]
[349887818,1737478255777,-162.97906099,0.00019726,2]
[349887819,1737478255788,-1000.0,0.00019726,14]
[349887820,1737478255797,-414.72093901,0.00019726,2]
[349887821,1737478255811,-421.299995,0.00019726,2]
[349887822,1737478255827,-273.98906599,0.00019726,2]
[349887823,1737478255837,-508.79,0.00019726,2]
[349887824,1737478255846,-500.0,0.00019726,2]
[349887825,1737478255856,-500.0,0.00019726,2]
[349887826,1737478255866,-500.0,0.00019726,2]
[349887827,1737478255875,-2345.93,0.00019726,2]
[349887828,1737478255885,-52.41196741,0.00019726,2]
[349887830,1737478608188,171.06,0.00018442,30]
[349887831,1737478608549,171.06,0.00021026,30]
[349887834,1737478940892,159.47,0.00010137,2]
[349887839,1737479428294,185.0,6.301e-05,2]
[349887845,1737479432051,-455.63,0.00016262,2]
[349887846,1737479432060,-793.39133421,0.00017171,2]
[349887847,1737479432072,-1203.73516476,0.00017171,2]
[349887869,1737479438094,-16407.87350103,0.00017171,2]
[349887870,1737479438104,-150.0,0.000174,2]
[349887871,1737479438113,-15074.77449897,0.00017858,2]
[349887872,1737479438202,-525.77525,0.00017858,2]
[349887873,1737479438258,-4200.0,0.00017858,2]